[Event "Live Chess"]
[Site "Chess.com"]
[Date "2023.05.20"]
[Round "-"]
[White "mattihelenius2"]
[Black "LaupMiths"]
[Result "0-1"]
[WhiteElo "445"]
[BlackElo "1827"]
[TimeControl "300"]
[EndTime "10:12:32 PDT"]
[Termination "LaupMiths won by resignation"]

1. d4 {[%clk 0:04:57.5]} 1... d5 {[%clk 0:04:56]} 2. c3 {[%clk 0:04:56.4]} 2...
c5 {[%clk 0:04:48.8]} 3. e3 {[%clk 0:04:50]} 3... e6 {[%clk 0:04:46.6]} 4. Bb5+
{[%clk 0:04:41.4]} 4... Bd7 {[%clk 0:04:44.3]} 5. Na3 {[%clk 0:04:32.6]} 5...
Bxb5 {[%clk 0:04:42.1]} 6. Nxb5 {[%clk 0:04:31.7]} 6... a6 {[%clk 0:04:41.1]} 7.
Na3 {[%clk 0:04:27]} 7... Nc6 {[%clk 0:04:39]} 8. Nf3 {[%clk 0:04:21.2]} 8...
Nf6 {[%clk 0:04:37.8]} 9. Ne5 {[%clk 0:04:19.3]} 9... Rc8 {[%clk 0:04:34.7]} 10.
O-O {[%clk 0:04:04.2]} 10... Nxe5 {[%clk 0:04:32.8]} 11. dxe5 {[%clk 0:04:03.2]}
11... Ng4 {[%clk 0:04:28.2]} 12. Qxg4 {[%clk 0:03:54.6]} 12... h5 {[%clk
0:04:26.1]} 13. Qd1 {[%clk 0:03:52.7]} 13... Qg5 {[%clk 0:04:24.2]} 14. g3
{[%clk 0:03:49.2]} 14... Qxe5 {[%clk 0:04:22.2]} 15. Nc2 {[%clk 0:03:41.2]}
15... Bd6 {[%clk 0:04:19.8]} 16. Qf3 {[%clk 0:03:32.6]} 16... h4 {[%clk
0:04:18.2]} 17. Qg2 {[%clk 0:03:24.4]} 17... hxg3 {[%clk 0:04:13.7]} 18. hxg3
{[%clk 0:03:23.3]} 18... Ke7 {[%clk 0:04:06.6]} 19. e4 {[%clk 0:03:17.4]} 19...
dxe4 {[%clk 0:04:02.9]} 20. Ne3 {[%clk 0:03:16.4]} 20... b5 {[%clk 0:03:57.9]}
21. b3 {[%clk 0:03:11.8]} 21... Rh7 {[%clk 0:03:52.3]} 22. Bb2 {[%clk
0:03:02.3]} 22... Rch8 {[%clk 0:03:49.8]} 23. c4 {[%clk 0:03:01.1]} 23... Qh5
{[%clk 0:03:48.3]} 24. f3 {[%clk 0:02:57.3]} 24... exf3 {[%clk 0:03:25.4]} 25.
Rxf3 {[%clk 0:02:44.6]} 25... Qh1+ {[%clk 0:03:23]} 26. Kf2 {[%clk 0:02:42.3]}
26... Qxg2+ {[%clk 0:03:18.9]} 27. Nxg2 {[%clk 0:02:40.6]} 27... Rh2 {[%clk
0:03:12.3]} 28. Kg1 {[%clk 0:02:32.7]} 28... f6 {[%clk 0:03:04.9]} 29. Rb1
{[%clk 0:02:30.1]} 29... Rh1+ {[%clk 0:03:00.8]} 30. Kf2 {[%clk 0:02:28.2]}
30... Rxb1 {[%clk 0:02:59.6]} 31. Ne3 {[%clk 0:02:23.9]} 31... Rxb2+ {[%clk
0:02:57.9]} 32. Ke1 {[%clk 0:02:21.9]} 32... Rh1+ {[%clk 0:02:55.5]} 33. Nf1
{[%clk 0:02:17.9]} 33... Rb1+ {[%clk 0:02:49.1]} 34. Ke2 {[%clk 0:02:14.3]}
34... Rbxf1 {[%clk 0:02:45.2]} 35. Rxf1 {[%clk 0:02:12.9]} 35... Rxf1 {[%clk
0:02:44.6]} 36. Kxf1 {[%clk 0:02:12]} 36... Bxg3 {[%clk 0:02:44.1]} 37. Kg2
{[%clk 0:02:10.5]} 37... Bd6 {[%clk 0:02:41.2]} 38. Kf3 {[%clk 0:02:09.5]} 38...
g5 {[%clk 0:02:39.4]} 39. cxb5 {[%clk 0:02:08.7]} 39... axb5 {[%clk 0:02:37.8]}
40. Ke4 {[%clk 0:02:08]} 40... f5+ {[%clk 0:02:35.8]} 41. Kf3 {[%clk 0:02:06.6]}
41... g4+ {[%clk 0:02:34.8]} 42. Ke3 {[%clk 0:02:05.2]} 42... Kf6 {[%clk
0:02:33.4]} 43. Kd3 {[%clk 0:02:03.8]} 43... Ke5 {[%clk 0:02:32.6]} 44. a4
{[%clk 0:02:01.8]} 44... bxa4 {[%clk 0:02:30.7]} 45. bxa4 {[%clk 0:02:01]} 45...
Kd5 {[%clk 0:02:29.8]} 46. Kc3 {[%clk 0:01:59.8]} 46... Bc7 {[%clk 0:02:28.5]}
47. Kb3 {[%clk 0:01:58.7]} 47... Ba5 {[%clk 0:02:27.4]} 48. Ka3 {[%clk
0:01:57.4]} 48... g3 {[%clk 0:02:27]} 49. Kb3 {[%clk 0:01:56.4]} 49... g2 {[%clk
0:02:26.5]} 0-1

[Event "Live Chess"]
[Site "Chess.com"]
[Date "2023.05.20"]
[Round "-"]
[White "seasidecastle27"]
[Black "f4nomore"]
[Result "1-0"]
[WhiteElo "1778"]
[BlackElo "1365"]
[TimeControl "300"]
[EndTime "10:12:33 PDT"]
[Termination "seasidecastle27 won - game abandoned"]

1. d4 {[%clk 0:04:56.5]} 1... g6 {[%clk 0:04:59.9]} 2. e4 {[%clk 0:04:54.4]}
2... Bg7 {[%clk 0:04:59.8]} 3. Be3 {[%clk 0:04:52.6]} 3... d6 {[%clk 0:04:59.7]}
4. Nc3 {[%clk 0:04:50.8]} 4... Nf6 {[%clk 0:04:59.6]} 5. Qd2 {[%clk 0:04:48.4]}
5... Ng4 {[%clk 0:04:52.5]} 6. Bg5 {[%clk 0:04:45.3]} 6... f6 {[%clk 0:04:49.7]}
7. Bh4 {[%clk 0:04:42.9]} 7... O-O {[%clk 0:04:47.8]} 8. f3 {[%clk 0:04:33.3]}
8... Bh6 {[%clk 0:04:45.3]} 9. Qe2 {[%clk 0:04:24.2]} 9... Ne3 {[%clk
0:04:34.9]} 10. Bf2 {[%clk 0:04:21.8]} 10... Nxf1 {[%clk 0:04:22]} 11. Kxf1
{[%clk 0:04:19.5]} 11... Nc6 {[%clk 0:04:18.3]} 12. Rd1 {[%clk 0:04:16.1]} 12...
e5 {[%clk 0:04:15.1]} 13. Qc4+ {[%clk 0:03:48.7]} 13... Kg7 {[%clk 0:04:07.9]}
14. d5 {[%clk 0:03:46.4]} 14... Ne7 {[%clk 0:03:58.9]} 15. h4 {[%clk 0:03:42.8]}
15... a6 {[%clk 0:03:41]} 16. g4 {[%clk 0:03:40.1]} 16... Bf4 {[%clk 0:03:33.7]}
17. Nge2 {[%clk 0:03:26.6]} 17... b5 {[%clk 0:03:30.6]} 18. Qd3 {[%clk
0:03:23.7]} 18... b4 {[%clk 0:03:19.6]} 19. Nxf4 {[%clk 0:03:18.1]} 19... exf4
{[%clk 0:03:17.7]} 20. Ne2 {[%clk 0:03:15.7]} 20... a5 {[%clk 0:03:13.6]} 21.
Nxf4 {[%clk 0:03:11.9]} 21... Ba6 {[%clk 0:03:11.6]} 22. Ne6+ {[%clk 0:03:06.4]}
22... Kh8 {[%clk 0:03:07.9]} 23. Nxd8 {[%clk 0:03:05.2]} 23... Bxd3+ {[%clk
0:03:06.3]} 24. cxd3 {[%clk 0:02:57.2]} 24... Rfxd8 {[%clk 0:03:03.3]} 25. Rc1
{[%clk 0:02:55.3]} 25... Rdc8 {[%clk 0:02:55.9]} 26. Ke2 {[%clk 0:02:53.6]}
26... c6 {[%clk 0:02:52.4]} 27. dxc6 {[%clk 0:02:47.2]} 27... Nxc6 {[%clk
0:02:50]} 28. Rc4 {[%clk 0:02:35.9]} 28... Ne5 {[%clk 0:02:47.6]} 29. Rxc8+
{[%clk 0:02:23.5]} 29... Rxc8 {[%clk 0:02:44.9]} 30. d4 {[%clk 0:01:44.7]} 30...
Rc2+ {[%clk 0:02:34.7]} 31. Ke3 {[%clk 0:01:42.5]} 31... Nc4+ {[%clk 0:02:18.6]}
32. Kd3 {[%clk 0:01:38]} 32... Rxf2 {[%clk 0:02:16.7]} 33. Kxc4 {[%clk
0:01:36.3]} 33... Rxb2 {[%clk 0:02:14.9]} 34. Kd5 {[%clk 0:01:30.2]} 34... Rxa2
{[%clk 0:02:13.3]} 35. Kxd6 {[%clk 0:01:29.4]} 35... Rf2 {[%clk 0:02:11.6]} 36.
Ra1 {[%clk 0:01:22.5]} 36... Rxf3 {[%clk 0:02:09.8]} 37. Rxa5 {[%clk 0:01:20.2]}
37... Rf4 {[%clk 0:02:08.1]} 38. Kd5 {[%clk 0:01:11.8]} 38... Rxg4 {[%clk
0:02:06]} 39. e5 {[%clk 0:01:09.2]} 39... fxe5 {[%clk 0:02:03.3]} 40. dxe5
{[%clk 0:01:07.5]} 40... Kg7 {[%clk 0:02:01.1]} 41. Ra7+ {[%clk 0:01:04.1]}
41... Kf8 {[%clk 0:01:57]} 42. e6 {[%clk 0:00:56.2]} 42... Rxh4 {[%clk
0:01:45.5]} 43. Rb7 {[%clk 0:00:49.1]} 43... h5 {[%clk 0:01:34.2]} 44. Kd6
{[%clk 0:00:46.5]} 44... Rd4+ {[%clk 0:01:26.9]} 45. Ke5 {[%clk 0:00:44.9]} 1-0

[Event "Live Chess"]
[Site "Chess.com"]
[Date "2023.05.20"]
[Round "-"]
[White "vinni3012"]
[Black "Outspanner"]
[Result "1-0"]
[WhiteElo "1865"]
[BlackElo "1554"]
[TimeControl "300"]
[EndTime "10:12:40 PDT"]
[Termination "vinni3012 won by checkmate"]

1. d4 {[%clk 0:04:58.4]} 1... d6 {[%clk 0:04:56.6]} 2. c4 {[%clk 0:04:56.3]}
2... Nd7 {[%clk 0:04:54.4]} 3. Nc3 {[%clk 0:04:50.2]} 3... e5 {[%clk 0:04:51.6]}
4. Nf3 {[%clk 0:04:46.6]} 4... exd4 {[%clk 0:04:36]} 5. Nxd4 {[%clk 0:04:44.1]}
5... g6 {[%clk 0:04:35]} 6. e3 {[%clk 0:04:37.7]} 6... Bg7 {[%clk 0:04:34.2]} 7.
Be2 {[%clk 0:04:36.6]} 7... Ngf6 {[%clk 0:04:31.8]} 8. O-O {[%clk 0:04:35.5]}
8... O-O {[%clk 0:04:31.3]} 9. b3 {[%clk 0:04:33.8]} 9... Ne5 {[%clk 0:04:11.7]}
10. Bb2 {[%clk 0:04:30.5]} 10... Bd7 {[%clk 0:04:00.4]} 11. f3 {[%clk
0:04:17.9]} 11... Re8 {[%clk 0:03:51.3]} 12. e4 {[%clk 0:04:16.6]} 12... a6
{[%clk 0:03:22.5]} 13. Qc2 {[%clk 0:04:08.7]} 13... h5 {[%clk 0:03:12.5]} 14.
Rac1 {[%clk 0:03:30.8]} 14... Bh6 {[%clk 0:03:05.2]} 15. Nd5 {[%clk 0:03:04]}
15... Nxd5 {[%clk 0:02:41.7]} 16. cxd5 {[%clk 0:02:59.8]} 16... Be3+ {[%clk
0:02:38]} 17. Kh1 {[%clk 0:02:56.7]} 17... Bxc1 {[%clk 0:02:37]} 18. Bxc1 {[%clk
0:02:33.4]} 18... Kg7 {[%clk 0:02:29.8]} 19. Qd2 {[%clk 0:02:28.7]} 19... Rh8
{[%clk 0:02:24.8]} 20. Bb2 {[%clk 0:02:18.4]} 20... f6 {[%clk 0:02:18.9]} 21.
Rc1 {[%clk 0:02:14.7]} 21... c6 {[%clk 0:02:07]} 22. f4 {[%clk 0:02:00.7]} 22...
Ng4 {[%clk 0:01:59.1]} 23. Bxg4 {[%clk 0:01:58.3]} 23... hxg4 {[%clk 0:01:53.3]}
24. f5 {[%clk 0:01:41.4]} 24... c5 {[%clk 0:01:33.4]} 25. Ne6+ {[%clk
0:01:33.8]} 25... Bxe6 {[%clk 0:01:30.8]} 26. dxe6 {[%clk 0:01:29.3]} 26... Qf8
{[%clk 0:01:07.3]} 27. Qg5 {[%clk 0:01:15.5]} 27... Rh6 {[%clk 0:00:57]} 28. Rd1
{[%clk 0:01:01.8]} 28... Qh8 {[%clk 0:00:52.1]} 29. Bxf6+ {[%clk 0:00:57.3]}
29... Kg8 {[%clk 0:00:44.9]} 30. Bxh8 {[%clk 0:00:55.3]} 30... Rxh8 {[%clk
0:00:41.3]} 31. Qxg6+ {[%clk 0:00:53.6]} 31... Kf8 {[%clk 0:00:38.5]} 32. Qf7#
{[%clk 0:00:53.5]} 1-0

[Event "Live Chess"]
[Site "Chess.com"]
[Date "2023.05.20"]
[Round "-"]
[White "alexlines8"]
[Black "viktorskliarov"]
[Result "0-1"]
[WhiteElo "1270"]
[BlackElo "2648"]
[TimeControl "300"]
[EndTime "10:12:41 PDT"]
[Termination "viktorskliarov won by checkmate"]

1. e4 {[%clk 0:04:52.6]} 1... c5 {[%clk 0:04:58.2]} 2. c3 {[%clk 0:04:50.4]}
2... d6 {[%clk 0:04:57.3]} 3. d4 {[%clk 0:04:48.3]} 3... Nf6 {[%clk 0:04:55.6]}
4. Bd3 {[%clk 0:04:40.9]} 4... g6 {[%clk 0:04:51]} 5. Be3 {[%clk 0:04:37.3]}
5... Qc7 {[%clk 0:04:33.6]} 6. Nf3 {[%clk 0:04:24]} 6... Bg7 {[%clk 0:04:29.9]}
7. O-O {[%clk 0:04:17.8]} 7... O-O {[%clk 0:04:27.6]} 8. Nbd2 {[%clk 0:04:08.7]}
8... b6 {[%clk 0:04:00.6]} 9. b4 {[%clk 0:03:40.5]} 9... Bb7 {[%clk 0:03:51]}
10. bxc5 {[%clk 0:03:30]} 10... bxc5 {[%clk 0:03:49]} 11. d5 {[%clk 0:03:22.6]}
11... Ng4 {[%clk 0:03:47.5]} 12. Rb1 {[%clk 0:02:54.6]} 12... Nxe3 {[%clk
0:03:33.7]} 13. fxe3 {[%clk 0:02:51.3]} 13... Nd7 {[%clk 0:03:32]} 14. c4 {[%clk
0:02:43.5]} 14... Ne5 {[%clk 0:03:24]} 15. Nxe5 {[%clk 0:02:36.5]} 15... Bxe5
{[%clk 0:03:23.9]} 16. Nf3 {[%clk 0:02:31.7]} 16... Bg7 {[%clk 0:03:21.6]} 17.
Qb3 {[%clk 0:02:28.2]} 17... Bc8 {[%clk 0:03:20.2]} 18. Qc2 {[%clk 0:02:18.9]}
18... Bd7 {[%clk 0:03:18.5]} 19. Nd2 {[%clk 0:02:01.3]} 19... Rab8 {[%clk
0:03:13.3]} 20. Rxb8 {[%clk 0:01:59]} 20... Rxb8 {[%clk 0:03:13.2]} 21. Rb1
{[%clk 0:01:53.6]} 21... Rb4 {[%clk 0:02:53.4]} 22. a3 {[%clk 0:01:26.5]} 22...
Rxb1+ {[%clk 0:02:33.4]} 23. Qxb1 {[%clk 0:01:23.4]} 23... h5 {[%clk 0:02:32.1]}
24. Nf3 {[%clk 0:01:16.6]} 24... Bf6 {[%clk 0:02:21.9]} 25. g3 {[%clk
0:01:08.7]} 25... Kg7 {[%clk 0:02:16.5]} 26. Bc2 {[%clk 0:01:06.3]} 26... Bg4
{[%clk 0:02:10]} 27. Kg2 {[%clk 0:01:03.2]} 27... Qa5 {[%clk 0:02:08.4]} 28. Qb3
{[%clk 0:00:53.2]} 28... Bxf3+ {[%clk 0:01:39]} 29. Kxf3 {[%clk 0:00:50.9]}
29... Qd2 {[%clk 0:01:38.6]} 30. h3 {[%clk 0:00:21.3]} 30... Be5 {[%clk
0:01:35.5]} 31. Qd3 {[%clk 0:00:18.4]} 31... Qe1 {[%clk 0:01:31.9]} 32. Qe2
{[%clk 0:00:16.9]} 32... Qxg3# {[%clk 0:01:30.2]} 0-1

[Event "Live Chess"]
[Site "Chess.com"]
[Date "2023.05.20"]
[Round "-"]
[White "1600x"]
[Black "WilliamofOrange16th"]
[Result "1-0"]
[WhiteElo "1433"]
[BlackElo "1900"]
[TimeControl "300"]
[EndTime "10:12:42 PDT"]
[Termination "1600x won by resignation"]

1. d4 {[%clk 0:04:53.1]} 1... d5 {[%clk 0:04:58.9]} 2. Nc3 {[%clk 0:04:53]} 2...
c6 {[%clk 0:04:57.8]} 3. e3 {[%clk 0:04:51.7]} 3... Nf6 {[%clk 0:04:56.9]} 4.
Bd3 {[%clk 0:04:50.4]} 4... e6 {[%clk 0:04:54.6]} 5. Nf3 {[%clk 0:04:49]} 5...
Bd6 {[%clk 0:04:53.2]} 6. h3 {[%clk 0:04:47.5]} 6... O-O {[%clk 0:04:51.8]} 7.
e4 {[%clk 0:04:46.1]} 7... dxe4 {[%clk 0:04:50.5]} 8. Bxe4 {[%clk 0:04:44.8]}
8... Nxe4 {[%clk 0:04:48.5]} 9. Nxe4 {[%clk 0:04:44.1]} 9... Be7 {[%clk
0:04:48.1]} 10. O-O {[%clk 0:04:42.5]} 10... Nd7 {[%clk 0:04:45.6]} 11. Bg5
{[%clk 0:04:38.6]} 11... Bxg5 {[%clk 0:04:41.5]} 12. Nexg5 {[%clk 0:04:38.5]}
12... h6 {[%clk 0:04:33.9]} 13. Ne4 {[%clk 0:04:30.2]} 13... Nf6 {[%clk
0:04:32.8]} 14. Ned2 {[%clk 0:04:23]} 14... b6 {[%clk 0:04:18]} 15. Nc4 {[%clk
0:04:14.8]} 15... Bb7 {[%clk 0:04:13.3]} 16. Nfe5 {[%clk 0:04:10.7]} 16... Rc8
{[%clk 0:04:09.3]} 17. a4 {[%clk 0:04:05.3]} 17... Qd5 {[%clk 0:03:53.6]} 18. f3
{[%clk 0:04:00]} 18... c5 {[%clk 0:03:50.4]} 19. Qe1 {[%clk 0:03:51.1]} 19...
Qxd4+ {[%clk 0:03:47.5]} 20. Kh2 {[%clk 0:03:49.1]} 20... Rfd8 {[%clk
0:03:26.8]} 21. g3 {[%clk 0:03:47.5]} 21... Ba6 {[%clk 0:03:10.5]} 22. Rd1
{[%clk 0:03:44.4]} 22... Qxd1 {[%clk 0:03:09.2]} 23. Qxd1 {[%clk 0:03:41.7]}
23... Rxd1 {[%clk 0:03:08.6]} 24. Rxd1 {[%clk 0:03:40.4]} 24... Nd5 {[%clk
0:03:07]} 25. Nd6 {[%clk 0:03:38.7]} 25... Rc7 {[%clk 0:03:00.7]} 26. Nb5 {[%clk
0:03:36.1]} 26... Bxb5 {[%clk 0:02:54.6]} 27. axb5 {[%clk 0:03:34.7]} 27... f6
{[%clk 0:02:47.3]} 28. Nc4 {[%clk 0:03:33.2]} 28... Kf7 {[%clk 0:02:42.8]} 29.
Kg2 {[%clk 0:03:30.3]} 29... Ke7 {[%clk 0:02:42]} 30. Kf2 {[%clk 0:03:27.8]}
30... Rd7 {[%clk 0:02:34.3]} 31. Ra1 {[%clk 0:03:25.4]} 31... Nb4 {[%clk
0:02:32.1]} 32. c3 {[%clk 0:03:23.6]} 32... Nd5 {[%clk 0:02:28]} 33. f4 {[%clk
0:03:21.7]} 33... g5 {[%clk 0:02:25.6]} 34. Kf3 {[%clk 0:03:18.1]} 34... Kf7
{[%clk 0:01:59.9]} 35. Nd6+ {[%clk 0:03:16.1]} 35... Ke7 {[%clk 0:01:57.8]} 36.
Nc8+ {[%clk 0:03:14.1]} 36... Kf7 {[%clk 0:01:55.9]} 37. fxg5 {[%clk 0:03:12.1]}
37... fxg5 {[%clk 0:01:54.6]} 38. Rxa7 {[%clk 0:03:09.4]} 38... Rxa7 {[%clk
0:01:51.5]} 39. Nxa7 {[%clk 0:03:07.9]} 39... Kf6 {[%clk 0:01:46]} 40. Nc8
{[%clk 0:03:05.1]} 40... c4 {[%clk 0:01:43.9]} 41. Nd6 {[%clk 0:02:57.1]} 41...
e5 {[%clk 0:01:18.1]} 42. Nxc4 {[%clk 0:02:48.2]} 42... h5 {[%clk 0:01:14.6]}
43. Ke4 {[%clk 0:02:45.2]} 43... Nc7 {[%clk 0:01:10.6]} 44. Nxb6 {[%clk
0:02:43.5]} 44... Nxb5 {[%clk 0:01:09.8]} 45. c4 {[%clk 0:02:42.1]} 45... Nd6+
{[%clk 0:01:08.3]} 46. Kd5 {[%clk 0:02:40.7]} 46... Nf5 {[%clk 0:01:07.6]} 47.
Nd7+ {[%clk 0:02:39.3]} 47... Ke7 {[%clk 0:01:05.2]} 48. Kxe5 {[%clk 0:02:38]}
48... Nxg3 {[%clk 0:01:04.4]} 49. Nf6 {[%clk 0:02:36.6]} 49... Kf7 {[%clk
0:00:56.7]} 50. c5 {[%clk 0:02:34.4]} 50... h4 {[%clk 0:00:54.9]} 51. c6 {[%clk
0:02:33.2]} 1-0

[Event "Live Chess"]
[Site "Chess.com"]
[Date "2023.05.20"]
[Round "-"]
[White "Greenbecker"]
[Black "gmnorfolk"]
[Result "0-1"]
[WhiteElo "1667"]
[BlackElo "2182"]
[TimeControl "300"]
[EndTime "10:12:42 PDT"]
[Termination "gmnorfolk won by checkmate"]

1. e4 {[%clk 0:04:57.3]} 1... e5 {[%clk 0:04:59.3]} 2. Nf3 {[%clk 0:04:55.8]}
2... Nc6 {[%clk 0:04:58.7]} 3. Bb5 {[%clk 0:04:54]} 3... a6 {[%clk 0:04:58.1]}
4. Ba4 {[%clk 0:04:52.5]} 4... Nf6 {[%clk 0:04:57.6]} 5. O-O {[%clk 0:04:50.9]}
5... Be7 {[%clk 0:04:57.3]} 6. Re1 {[%clk 0:04:50.3]} 6... b5 {[%clk 0:04:56.7]}
7. Bb3 {[%clk 0:04:49.1]} 7... O-O {[%clk 0:04:56.2]} 8. c3 {[%clk 0:04:45.2]}
8... d5 {[%clk 0:04:54.6]} 9. exd5 {[%clk 0:04:43.9]} 9... Nxd5 {[%clk
0:04:54.3]} 10. Nxe5 {[%clk 0:04:42.6]} 10... Nxe5 {[%clk 0:04:53.9]} 11. Rxe5
{[%clk 0:04:41.7]} 11... c6 {[%clk 0:04:53.5]} 12. Bxd5 {[%clk 0:04:37.1]} 12...
cxd5 {[%clk 0:04:51.8]} 13. Qe2 {[%clk 0:04:35.7]} 13... Bd6 {[%clk 0:04:47.8]}
14. Re3 {[%clk 0:04:34.4]} 14... f5 {[%clk 0:04:39.8]} 15. d4 {[%clk 0:04:23.3]}
15... f4 {[%clk 0:04:36.8]} 16. Rd3 {[%clk 0:04:16.5]} 16... Bf5 {[%clk
0:04:32.5]} 17. Rd1 {[%clk 0:04:13.7]} 17... Qh4 {[%clk 0:04:22.5]} 18. Nd2
{[%clk 0:04:03.7]} 18... Rae8 {[%clk 0:04:17]} 19. Nf3 {[%clk 0:03:59.7]} 19...
Qh5 {[%clk 0:04:11.9]} 20. Qf1 {[%clk 0:03:46.9]} 20... Bg4 {[%clk 0:04:10.5]}
21. Qd3 {[%clk 0:03:30.3]} 21... Bf5 {[%clk 0:04:00.9]} 22. Qf1 {[%clk
0:03:28.7]} 22... g5 {[%clk 0:03:42.8]} 23. Bd2 {[%clk 0:03:16.8]} 23... Bg4
{[%clk 0:03:29.8]} 24. Qd3 {[%clk 0:03:11.8]} 24... Bf5 {[%clk 0:03:26.8]} 25.
Qf1 {[%clk 0:03:10.6]} 25... Be4 {[%clk 0:03:11.2]} 26. Qe2 {[%clk 0:02:58.1]}
26... g4 {[%clk 0:03:04]} 27. Ne1 {[%clk 0:02:51.7]} 27... f3 {[%clk 0:02:58.7]}
28. Qe3 {[%clk 0:02:45.7]} 28... Qxh2+ {[%clk 0:02:54.9]} 29. Kf1 {[%clk
0:02:43.4]} 29... Bd3+ {[%clk 0:02:43.8]} 30. Qxd3 {[%clk 0:02:39]} 30... Qh1#
{[%clk 0:02:42.8]} 0-1

[Event "Live Chess"]
[Site "Chess.com"]
[Date "2023.05.20"]
[Round "-"]
[White "Albul"]
[Black "Tilbs_12"]
[Result "1-0"]
[WhiteElo "2189"]
[BlackElo "1594"]
[TimeControl "300"]
[EndTime "10:12:49 PDT"]
[Termination "Albul won on time"]

1. e4 {[%clk 0:04:58.4]} 1... c6 {[%clk 0:04:58.9]} 2. d4 {[%clk 0:04:56.8]}
2... d5 {[%clk 0:04:58.3]} 3. e5 {[%clk 0:04:56.5]} 3... c5 {[%clk 0:04:57.5]}
4. c3 {[%clk 0:04:55.3]} 4... Nc6 {[%clk 0:04:56.7]} 5. Be3 {[%clk 0:04:54.2]}
5... cxd4 {[%clk 0:04:55.2]} 6. cxd4 {[%clk 0:04:52.9]} 6... Bf5 {[%clk
0:04:51.1]} 7. Bd3 {[%clk 0:04:50.7]} 7... Bg6 {[%clk 0:04:41.2]} 8. Ne2 {[%clk
0:04:41.5]} 8... e6 {[%clk 0:04:36.4]} 9. O-O {[%clk 0:04:35.1]} 9... Nge7
{[%clk 0:04:32.4]} 10. Nbc3 {[%clk 0:04:32.5]} 10... Nf5 {[%clk 0:04:23.4]} 11.
Qd2 {[%clk 0:04:25.1]} 11... Qb6 {[%clk 0:04:06.2]} 12. Bxf5 {[%clk 0:04:09.8]}
12... Bxf5 {[%clk 0:04:04]} 13. Ng3 {[%clk 0:04:08.3]} 13... Bg6 {[%clk
0:04:02.2]} 14. f4 {[%clk 0:04:07.7]} 14... Bb4 {[%clk 0:03:55.8]} 15. f5 {[%clk
0:04:05.2]} 15... exf5 {[%clk 0:03:54.5]} 16. Nxf5 {[%clk 0:04:04.5]} 16... O-O
{[%clk 0:03:49.4]} 17. g4 {[%clk 0:03:29.7]} 17... Rad8 {[%clk 0:03:31.6]} 18.
a3 {[%clk 0:03:25.2]} 18... Bxc3 {[%clk 0:03:29.1]} 19. bxc3 {[%clk 0:03:24.6]}
19... Bxf5 {[%clk 0:03:16]} 20. gxf5 {[%clk 0:03:18.7]} 20... Na5 {[%clk
0:03:14.8]} 21. Rab1 {[%clk 0:03:14.6]} 21... Qc6 {[%clk 0:03:12.1]} 22. Bg5
{[%clk 0:03:03.1]} 22... Nc4 {[%clk 0:02:58.1]} 23. Qg2 {[%clk 0:02:48.3]} 23...
g6 {[%clk 0:02:40.8]} 24. Bxd8 {[%clk 0:02:40.5]} 24... Rxd8 {[%clk 0:02:37.7]}
25. f6 {[%clk 0:02:36.2]} 25... Qe6 {[%clk 0:02:20.5]} 26. Rf3 {[%clk
0:02:18.9]} 26... b6 {[%clk 0:02:16.7]} 27. a4 {[%clk 0:02:14.9]} 27... Na5
{[%clk 0:01:45.2]} 28. Qg5 {[%clk 0:02:11.5]} 28... Qe8 {[%clk 0:01:40.4]} 29.
Rh3 {[%clk 0:02:08.1]} 29... Qf8 {[%clk 0:01:28.6]} 30. Qh4 {[%clk 0:02:06.2]}
30... h5 {[%clk 0:01:26.1]} 31. Qg5 {[%clk 0:02:04.1]} 31... Kh7 {[%clk
0:01:20.3]} 32. Kf2 {[%clk 0:01:52.6]} 32... Qh6 {[%clk 0:00:53.7]} 33. Qxh6+
{[%clk 0:01:43.7]} 33... Kxh6 {[%clk 0:00:52.5]} 34. Re1 {[%clk 0:01:43.2]}
34... Kg5 {[%clk 0:00:28.6]} 35. Rf3 {[%clk 0:01:39.8]} 35... Nc4 {[%clk
0:00:17.5]} 36. e6 {[%clk 0:01:13.6]} 36... fxe6 {[%clk 0:00:14.3]} 37. Rxe6
{[%clk 0:01:06.6]} 37... Nd2 {[%clk 0:00:12.4]} 38. f7 {[%clk 0:01:03]} 38...
Nxf3 {[%clk 0:00:09.5]} 39. Re8 {[%clk 0:01:01.5]} 39... Rd6 {[%clk 0:00:01.7]}
40. f8=Q {[%clk 0:00:59.2]} 1-0

[Event "Live Chess"]
[Site "Chess.com"]
[Date "2023.05.20"]
[Round "-"]
[White "EdenHazard8"]
[Black "terrub10"]
[Result "1-0"]
[WhiteElo "2114"]
[BlackElo "516"]
[TimeControl "300"]
[EndTime "10:12:53 PDT"]
[Termination "EdenHazard8 won by checkmate"]

1. e4 {[%clk 0:04:58.6]} 1... e5 {[%clk 0:04:55.7]} 2. Qh5 {[%clk 0:04:58.2]}
2... g6 {[%clk 0:04:52.9]} 3. Qxe5+ {[%clk 0:04:56.5]} 3... Be7 {[%clk
0:04:50.2]} 4. Qxh8 {[%clk 0:04:56.4]} 4... Bb4 {[%clk 0:04:44]} 5. Qxg8+ {[%clk
0:04:54.8]} 5... Ke7 {[%clk 0:04:42.2]} 6. Qxd8+ {[%clk 0:04:54.7]} 6... Kxd8
{[%clk 0:04:40.5]} 7. c3 {[%clk 0:04:54.6]} 7... Bc5 {[%clk 0:04:33.3]} 8. d4
{[%clk 0:04:53.7]} 8... Bd6 {[%clk 0:04:30.6]} 9. Bc4 {[%clk 0:04:51.8]} 9... f5
{[%clk 0:04:22.1]} 10. e5 {[%clk 0:04:48.2]} 10... Bxe5 {[%clk 0:04:17.2]} 11.
dxe5 {[%clk 0:04:46.9]} 11... h5 {[%clk 0:04:14.5]} 12. Bf7 {[%clk 0:04:46.3]}
12... f4 {[%clk 0:04:11.4]} 13. Bxf4 {[%clk 0:04:44.6]} 13... g5 {[%clk
0:04:09.6]} 14. Bxg5# {[%clk 0:04:43.8]} 1-0

[Event "Live Chess"]
[Site "Chess.com"]
[Date "2023.05.20"]
[Round "-"]
[White "Ferrarifan27"]
[Black "Jeffaroow"]
[Result "1-0"]
[WhiteElo "2105"]
[BlackElo "465"]
[TimeControl "300"]
[EndTime "10:13:05 PDT"]
[Termination "Ferrarifan27 won by resignation"]

1. e4 {[%clk 0:04:57.9]} 1... e5 {[%clk 0:04:58.8]} 2. Nf3 {[%clk 0:04:54.7]}
2... Nc6 {[%clk 0:04:57.4]} 3. Bb5 {[%clk 0:04:52.8]} 3... Bd6 {[%clk
0:04:53.8]} 4. O-O {[%clk 0:04:49.9]} 4... Nge7 {[%clk 0:04:51.7]} 5. d3 {[%clk
0:04:44.8]} 5... O-O {[%clk 0:04:43.8]} 6. Nc3 {[%clk 0:04:42.9]} 6... a6 {[%clk
0:04:42.3]} 7. Bc4 {[%clk 0:04:41.1]} 7... b5 {[%clk 0:04:39.2]} 8. Bb3 {[%clk
0:04:39.7]} 8... Nd4 {[%clk 0:04:37.3]} 9. Nxd4 {[%clk 0:04:37.5]} 9... exd4
{[%clk 0:04:35.8]} 10. Ne2 {[%clk 0:04:36.4]} 10... Nc6 {[%clk 0:04:29.8]} 11.
Bf4 {[%clk 0:04:31.2]} 11... Qe7 {[%clk 0:04:20.7]} 12. a3 {[%clk 0:04:27.4]}
12... Ne5 {[%clk 0:04:12.5]} 13. Nxd4 {[%clk 0:04:23.9]} 13... Nf3+ {[%clk
0:04:03.7]} 14. Qxf3 {[%clk 0:04:21.6]} 1-0